bitfinex-derivatives/quotes_SOLF0:USTF0_20251109
["timestamp","ask_amount","ask_price","bid_price","bid_amount"]
[1762668562032,3.1,157.98,157.96,0.04813597]
[1762668564339,0.04387717,158.0,157.97,3.09]
[1762668564643,0.04387717,158.0,157.98,1.69460697]
[1762668565043,3.14387717,158.0,157.98,1.69460697]
[1762668565240,0.04387717,158.0,157.99,3.09]
[1762668574247,3.25387717,158.0,157.98,8.34186491]
[1762668574451,3.25387717,158.0,157.98,2.64306491]
[1762668575044,3.25387717,158.0,157.98,5.84306491]
[1762668577049,3.25387717,158.0,157.98,11.54186491]
[1762668579659,0.04387717,158.0,157.98,11.54186491]
[1762668580042,0.04387717,158.0,157.99,3.2]
[1762668580254,3.21,158.04,158.01,3.2]
[1762668581356,3.24989086,158.04,158.01,3.24851032]
[1762668583254,3.24989086,158.04,158.01,8.94621032]
[1762668584055,3.24989086,158.04,158.01,0.04851032]
[1762668584056,4.50989086,158.04,158.01,0.04851032]
[1762668584257,3.21,158.03,157.93,5.84306491]
[1762668585252,2.99,157.99,157.96,0.04325127]
[1762668585449,2.99,157.99,157.96,0.0417845]
[1762668585861,2.99,157.98,157.96,0.0417845]
[1762668589465,3.03458957,158.0,157.96,3.1617845]
[1762668591964,3.03458957,158.0,157.96,0.0417845]
[1762668592161,3.03458957,158.0,157.96,3.1617845]
[1762668592759,3.03458957,158.0,157.96,8.8612845]
[1762668592955,3.03458957,158.0,157.96,5.7412845]
[1762668593161,0.04458957,158.0,157.98,3.12]
[1762668594067,0.04458957,158.0,157.99,3.12]
[1762668595664,3.03458957,158.0,157.96,0.0417845]
[1762668597064,8.73288957,158.0,157.96,0.0417845]
[1762668597269,2.99,157.99,157.96,0.0417845]
[1762668599067,2.99,157.98,157.96,0.0417845]
[1762668602964,2.99,157.98,157.96,3.2417845]
[1762668604569,3.15458957,158.0,157.97,3.2]
[1762668605174,0.04458957,158.0,157.98,3.2]
[1762668606074,0.04458957,158.0,157.98,8.8988]
[1762668610276,0.04458957,158.0,157.99,3.2]
[1762668610777,3.15458957,158.0,157.98,3.2]
[1762668611082,0.04458957,158.0,157.98,3.2]
[1762668618483,0.04458957,158.0,157.98,8.8988]
[1762668618785,0.04458957,158.0,157.99,3.2]
[1762668626503,13.39358577,158.08,158.02,3.2]
[1762668626804,8.8055,158.08,158.02,3.2]
[1762668627001,3.11,158.08,158.02,3.2]
[1762668627604,3.15181615,158.07,158.04,3.2]
[1762668630005,3.15181615,158.07,158.03,0.03998488]
[1762668631208,3.15181615,158.07,158.03,3.23998488]
[1762668631404,3.11,158.06,158.03,0.03998488]
[1762668632604,3.1,158.04,158.03,0.03998488]
[1762668641212,3.1,158.04,157.97,3.06]
[1762668641415,3.1,158.01,157.97,3.06]
[1762668641815,3.1,158.0,157.95,8.7597]
[1762668642107,3.1,158.0,157.96,3.06]
[1762668642315,3.14388017,158.0,157.96,3.10431471]
[1762668642612,3.1,157.99,157.96,5.74381471]
[1762668642813,3.1,157.99,157.96,0.04431471]
[1762668645318,8.7986,157.99,157.96,0.04431471]
[1762668645516,3.13,157.98,157.96,0.04431471]
[1762668647815,3.13,157.99,157.96,3.21431471]
[1762668649017,3.13,157.99,157.97,3.17]
[1762668649222,0.04388017,158.0,157.97,3.17]
[1762668650119,0.04388017,158.0,157.98,3.17]
[1762668650320,3.17388017,158.0,157.98,3.17]
[1762668651714,0.04388017,158.0,157.99,3.17]
[1762668651913,3.17388017,158.0,157.98,3.17]
[1762668655726,0.04388017,158.0,157.98,3.17]
[1762668659122,0.04388017,158.0,157.99,3.17]
[1762668666635,0.04388017,158.0,157.98,8.7888]
[1762668666834,3.03388017,158.0,157.98,8.7888]
[1762668670739,3.03388017,158.0,157.96,0.04431471]
[1762668670934,3.03388017,158.0,157.96,3.13431471]
[1762668671140,3.03388017,158.0,157.96,0.04431471]
[1762668672034,2.99,157.99,157.96,0.04431471]
[1762668673943,8.6886,157.99,157.96,0.04431471]
[1762668674335,2.99,157.98,157.96,0.04431471]
[1762668681548,2.99,157.97,157.96,0.04431471]
[1762668685246,3.03388017,158.0,157.96,3.13431471]
[1762668686443,8.73218017,158.0,157.96,8.83371471]
[1762668686643,2.99,157.99,157.96,0.04431471]
[1762668687856,2.99,157.97,157.96,0.04431471]
[1762668698565,3.15,157.98,157.96,3.09431471]
[1762668699763,3.15,157.98,157.96,8.79381471]
[1762668700463,3.15,157.98,157.96,3.09431471]
[1762668701456,3.15,157.98,157.96,0.04431471]
[1762668702953,3.15,157.97,157.96,0.04431471]
[1762668707965,3.13388017,158.0,157.96,3.15431471]
[1762668709070,3.13388017,158.0,157.97,3.11]
[1762668711474,0.04388017,158.0,157.97,8.8091]
[1762668711773,0.04388017,158.0,157.98,3.11]
[1762668715266,0.04388017,158.0,157.99,3.11]
[1762668716765,3.13388017,158.0,157.97,3.11]
[1762668719682,3.13388017,158.0,157.98,3.11]
[1762668720580,3.13388017,158.0,157.96,0.04431471]
[1762668721979,3.09,157.98,157.96,0.04431471]
[1762668732495,3.09,157.98,157.96,3.20431471]
[1762668746303,0.04388017,158.0,157.97,3.16]
[1762668746500,3.13388017,158.0,157.97,3.16]
[1762668748112,3.13388017,158.0,157.97,8.8592]
[1762668757303,3.13388017,158.0,157.98,2.99]
[1762668761308,8.83208017,158.0,157.96,0.04431471]
[1762668761514,3.18,157.99,157.96,0.04431471]
[1762668762208,3.18,157.99,157.96,3.03431471]
[1762668762811,3.18,157.98,157.96,0.04431471]
[1762668765823,3.18,157.98,157.96,3.11431471]
[1762668766023,3.16,157.99,157.96,3.11431471]
[1762668767124,3.16,157.99,157.96,8.81381471]
[1762668767320,3.16,157.99,157.97,3.07]
[1762668769130,3.16,157.99,157.98,3.07]
[1762668769323,3.20388017,158.0,157.98,3.07]
[1762668780831,3.20388017,158.0,157.96,0.04431471]
[1762668781437,3.16,157.98,157.96,0.04431471]
[1762668783541,3.02,157.99,157.96,2.95431471]
[1762668784038,3.06388017,158.0,157.97,2.91]
[1762668785744,3.06388017,158.0,157.98,2.91]
[1762668792951,3.06388017,158.0,157.96,0.04431471]
[1762668793153,3.02,157.99,157.96,0.04431471]
[1762668793455,3.02,157.97,157.96,0.04431471]
[1762668793658,3.02,157.96,157.9,8.6116]
[1762668793846,3.02,157.95,157.91,2.91]
[1762668794253,3.02,157.95,157.89,2.91]
[1762668794442,3.02,157.93,157.89,2.91]
[1762668794646,3.06691101,157.93,157.89,2.95284839]
[1762668795658,3.06691101,157.93,157.89,8.65484839]
[1762668795860,3.06691101,157.93,157.9,2.91]
[1762668796947,3.06691101,157.93,157.9,8.6116]
[1762668798159,3.06691101,157.93,157.9,2.91]
[1762668798750,3.06691101,157.93,157.9,8.6117]
[1762668799359,3.06691101,157.93,157.9,2.91]
[1762668800951,0.04691101,157.93,157.91,2.91]
[1762668801859,0.04691101,157.93,157.91,8.6113]
[1762668802060,0.04691101,157.93,157.92,2.91]
[1762668802353,3.02,157.99,157.93,2.91]
[1762668802658,3.02,157.99,157.96,2.91]
[1762668803459,3.06714623,157.99,157.97,2.91]
[1762668804957,3.06714623,157.99,157.97,8.6091]
[1762668808657,0.04714623,157.99,157.98,2.91]
[1762668812770,2.94,158.04,158.0,3.22]
[1762668813672,2.98102395,158.04,158.0,3.26150128]
[1762668814062,2.98102395,158.04,158.02,5.6972]
[1762668815574,2.98102395,158.04,158.0,8.95940128]
[1762668817968,2.98102395,158.04,158.01,5.6977]
[1762668830383,2.98102395,158.04,158.01,8.8677]
[1762668835490,2.98102395,158.04,158.01,3.17]
[1762668837486,2.98102395,158.04,158.01,8.8677]
[1762668838487,0.04102395,158.04,158.03,3.17]
[1762668839694,3.23102395,158.04,158.03,3.17]
[1762668842087,0.04102395,158.04,158.03,3.17]
[1762668847895,3.03102395,158.04,158.01,3.02]
[1762668849295,0.04102395,158.04,158.02,3.02]
[1762668850597,0.04102395,158.04,158.02,8.7173]
[1762668850795,0.04102395,158.04,158.03,3.02]
[1762668870710,4.62951491,158.11,158.06,3.02]
[1762668871011,195.01790659,158.12,158.06,3.02]
[1762668871218,2.99,158.11,158.06,3.02]
[1762668871612,0.04862864,158.1,158.07,0.04282728]
[1762668871819,3.03862864,158.1,158.07,8.70832728]
[1762668872209,3.03862864,158.1,158.07,3.01282728]
[1762668872607,0.04862864,158.1,158.07,3.01282728]
[1762668872810,3.03862864,158.1,158.07,3.01282728]
[1762668874620,3.03862864,158.1,158.08,2.97]
[1762668877519,0.04862864,158.1,158.08,2.97]
[1762668879115,0.04862864,158.1,158.08,8.6652]
[1762668879315,0.04862864,158.1,158.09,2.97]
[1762668901240,2.96862864,158.1,158.08,5.6952]
[1762668901438,2.96862864,158.1,158.08,8.6752]
[1762668905531,0.04862864,158.1,158.09,3.2]
[1762668906030,3.03862864,158.1,158.08,8.8952]
[1762668906234,3.03862864,158.1,158.08,3.2]
[1762668906838,0.04862864,158.1,158.08,3.2]
[1762668907644,0.04862864,158.1,158.08,8.8951]
[1762668907940,0.04862864,158.1,158.09,3.2]
[1762668912443,2.99,158.15,158.11,3.2]
[1762668913349,2.99,158.15,158.1,5.6943]
[1762668913641,2.99,158.12,158.1,5.6943]
[1762668914143,2.99,158.12,158.1,8.8943]
[1762668915047,2.99,158.12,158.09,0.04043647]
[1762668915249,2.99,158.11,158.09,0.04043647]
[1762668917643,8.6842,158.11,158.09,0.04043647]
[1762668917842,2.99,158.1,158.09,0.04043647]
[1762668919161,7.55716849,158.1,158.09,0.04043647]
[1762668920455,2.99,158.1,158.09,0.04043647]
[1762668921759,2.99,158.12,158.09,0.04043647]
[1762668922060,2.99,158.1,158.09,0.04043647]
[1762668928764,2.99,158.12,158.09,3.24043647]
[1762668928953,2.99,158.12,158.09,0.04043647]
[1762668929654,2.99,158.11,158.09,0.04043647]
[1762668933568,3.17,158.1,158.09,0.04043647]
[1762668944977,3.17,158.12,158.09,0.04043647]
[1762668948675,8.8639,158.12,158.09,0.04043647]
[1762668949084,2.96,158.11,158.09,0.04043647]
[1762668950392,2.96,158.1,158.09,0.04043647]
[1762668960291,2.96,158.07,158.02,8.8472]
[1762668960878,2.96,158.07,158.02,5.6972]
[1762668961081,2.96,158.05,158.03,0.04770165]
[1762668961387,0.04556452,158.06,158.03,0.04770165]
[1762668961388,7.61644139,158.04,158.03,0.04770165]
[1762668961589,7.61644139,158.04,157.92,65.20120484]
[1762668961590,3.06,158.01,157.96,7.84179772]
[1762668961782,5.9168338,158.07,157.93,10.79179772]
[1762668961783,3.06,157.99,157.93,10.79179772]
[1762668961983,3.06,157.99,157.94,7.84179772]
[1762668962186,3.06,157.99,157.94,2.95]
[1762668962581,3.06,157.97,157.95,0.0483654]
[1762668962778,0.0453683,157.98,157.95,2.9983654]
[1762668962989,0.0453683,157.98,157.97,2.95]
[1762668963693,0.0453683,157.98,157.97,4.21]
[1762668969492,0.0453683,157.98,157.97,2.95]
[1762668972591,3.06,158.05,158.01,2.95]
[1762668973795,3.10085301,158.05,158.01,2.99234829]
[1762668973995,3.10085301,158.05,158.01,8.68994829]
[1762668974595,3.10085301,158.05,158.01,5.73994829]
[1762668977802,8.79725301,158.05,158.01,0.04234829]
[1762668977995,3.06,158.04,158.01,0.04234829]
[1762668978298,8.7568,158.04,158.01,0.04234829]
[1762668978604,3.06,158.03,158.01,0.04234829]
[1762668988004,8.7572,158.03,158.01,0.04234829]
[1762668988503,3.06,158.02,158.01,0.04234829]
[1762668999204,7.5968191,158.02,158.01,0.04234829]
[1762669000209,3.05085301,158.05,158.01,3.07234829]
[1762669000505,3.01,158.04,158.01,3.07234829]
[1762669000909,3.05085301,158.05,158.02,3.03]
[1762669002313,3.05085301,158.05,158.02,8.7273]
[1762669006416,3.05085301,158.05,158.02,3.03]
[1762669007224,3.05085301,158.05,158.01,0.04234829]
[1762669007409,3.05085301,158.05,158.01,3.20234829]
[1762669008019,3.09,158.04,158.01,3.20234829]
[1762669013118,8.7868,158.04,158.01,0.04234829]
[1762669013324,9.31265127,158.03,158.01,0.04234829]
[1762669013524,7.62100079,158.02,158.01,0.04234829]
[1762669016020,8.7871,158.03,158.01,3.20234829]
[1762669016322,3.09,158.02,158.01,0.04234829]
[1762669020028,3.09,158.03,158.01,3.20234829]
[1762669021523,3.09,158.03,158.01,0.04234829]
[1762669021720,3.22,158.02,158.01,0.04234829]
[1762669023128,7.75078407,158.02,158.01,0.04234829]
[1762669023930,12.42734577,158.02,158.01,0.04234829]
[1762669024429,7.75078407,158.02,158.01,0.04234829]
[1762669024733,12.42726705,158.02,158.01,0.04234829]
[1762669025333,7.75078407,158.02,158.01,0.04234829]
[1762669032344,3.22,158.0,157.94,3.02]
[1762669032937,3.22,158.0,157.96,8.7195]
[1762669033438,3.26835604,158.0,157.96,8.76440418]
[1762669034741,3.26835604,158.0,157.97,5.6992]
[1762669037247,0.04835604,158.0,157.98,8.7187]
[1762669037550,0.04835604,158.0,157.99,3.02]
[1762669053461,5.89078424,158.08,158.01,2.93]
[1762669053462,3.21,158.08,158.01,2.93]
[1762669054065,3.21,158.1,158.05,2.93]
[1762669054367,4.67161898,158.09,158.05,2.93]
[1762669054664,0.04829926,158.09,158.05,2.97429126]
[1762669056067,0.04829926,158.09,158.08,2.93]
[1762669064275,3.25829926,158.09,158.06,2.93]
[1762669066378,3.25829926,158.09,158.05,5.74049126]
[1762669066577,3.25829926,158.09,158.05,0.04429126]
[1762669067280,3.25829926,158.09,158.05,3.07429126]
[1762669070085,3.05,158.08,158.05,0.04429126]
[1762669071185,3.05,158.08,158.05,3.07429126]
[1762669073985,3.05,158.08,158.05,8.77049126]
[1762669074687,0.04829926,158.09,158.06,8.7259]
[1762669074881,0.04829926,158.09,158.07,3.03]
[1762669075889,3.09829926,158.09,158.07,3.03]
[1762669076089,3.09829926,158.09,158.06,5.6959]
[1762669077284,3.09829926,158.09,158.06,8.7259]
[1762669077990,3.09829926,158.09,158.06,5.6959]
[1762669079389,3.09829926,158.09,158.06,8.7259]
[1762669081693,3.09829926,158.09,158.07,3.1]
[1762669081996,0.04829926,158.09,158.08,3.1]
[1762669085589,3.22,158.15,158.09,5.6945]
[1762669085787,3.22,158.15,158.1,3.1]
[1762669085991,2.64104333,158.17,158.1,3.1]
[1762669086189,3.22,158.16,158.1,3.1]
[1762669086489,3.22,158.16,158.12,3.1]
[1762669086798,3.26721163,158.16,158.12,3.1468853]
[1762669096891,0.04721163,158.16,158.12,3.1468853]
[1762669097088,3.26721163,158.16,158.12,3.1468853]
[1762669098101,3.26721163,158.16,158.13,3.1]
[1762669100797,3.26721163,158.16,158.14,3.1]
[1762669101598,3.26721163,158.16,158.12,3.1468853]
[1762669103002,3.26721163,158.16,158.12,8.8405853]
[1762669103198,3.26721163,158.16,158.12,5.7405853]
[1762669103405,3.26721163,158.16,158.12,8.8405853]
[1762669104204,3.26721163,158.16,158.13,3.1]
[1762669106509,8.95971163,158.16,158.12,5.7405853]
[1762669106701,3.22,158.15,158.12,5.7405853]
[1762669106903,3.22,158.15,158.12,8.8405853]
[1762669107299,3.22,158.15,158.13,3.1]
[1762669107707,0.04721163,158.16,158.13,8.7934]
[1762669107906,0.04721163,158.16,158.14,3.1]
[1762669108408,3.26721163,158.16,158.14,3.1]
[1762669109313,0.04721163,158.16,158.15,3.1]
[1762669112609,5.6905,158.22,158.17,3.21]
[1762669112913,3.13,158.21,158.17,3.21]
[1762669113602,3.17050589,158.21,158.17,3.25754766]
[1762669113998,3.17050589,158.21,158.18,3.21]
[1762669114609,3.13,158.19,158.17,0.04754766]
[1762669115003,3.13,158.18,158.17,0.04754766]
[1762669115210,5.77104333,158.2,158.17,3.25754766]
[1762669120410,1.68878657,158.19,158.17,3.25754766]
[1762669121718,1.68878657,158.19,158.18,3.21]
[1762669123413,4.81878657,158.19,158.17,0.04754766]
[1762669123620,3.13,158.18,158.17,0.04754766]
[1762669124512,3.13,158.18,158.14,5.6929]
[1762669124722,4.81878657,158.16,158.14,5.6929]
[1762669125019,1.68878657,158.16,158.14,8.9029]
[1762669125214,1.68878657,158.16,158.15,3.21]
[1762669125608,0.04288751,158.17,158.15,3.21]
[1762669125811,0.04288751,158.17,158.16,3.21]
[1762669126610,3.18288751,158.17,158.14,0.0464257]
[1762669126817,4.82878657,158.16,158.14,0.0464257]
[1762669127018,4.82878657,158.16,158.14,3.2564257]
[1762669127219,1.68878657,158.16,158.14,3.2564257]
[1762669127518,0.04288751,158.17,158.16,3.21]
[1762669140440,3.18288751,158.17,158.14,3.2564257]
[1762669140628,1.73167408,158.17,158.14,3.2564257]
[1762669141532,1.73167408,158.17,158.15,3.11]
[1762669141735,3.26288751,158.17,158.15,3.11]
[1762669142729,0.04288751,158.17,158.15,8.8026]
[1762669142928,0.04288751,158.17,158.16,3.11]
[1762669146242,3.22,158.22,158.19,3.11]
[1762669146540,3.22,158.26,158.19,3.11]
[1762669146736,3.22,158.25,158.18,7.81660749]
[1762669147052,3.22,158.23,158.2,3.11]
[1762669147341,3.26498972,158.23,158.2,3.15129883]
[1762669148145,0.04498972,158.23,158.2,3.15129883]
[1762669149345,0.04498972,158.23,158.2,8.84209883]
[1762669149744,0.04498972,158.23,158.21,3.11]
[1762669151938,1.68878657,158.22,158.2,8.84209883]
[1762669152139,3.22,158.21,158.2,0.04129883]
[1762669152533,4.90878657,158.22,158.2,3.15129883]
[1762669153340,4.90878657,158.22,158.2,0.04129883]
[1762669153537,3.22,158.21,158.2,0.04129883]
[1762669154047,1.68878657,158.22,158.2,3.15129883]
[1762669154243,4.90878657,158.22,158.2,3.15129883]
[1762669154740,3.22,158.21,158.2,0.04129883]
[1762669154938,3.22,158.21,158.16,3.11]
[1762669155142,1.68878657,158.18,158.16,3.11]
[1762669155343,4.90878657,158.18,158.16,3.11]
[1762669156742,1.68878657,158.18,158.16,3.11]
[1762669156943,3.2664388,158.19,158.16,3.11]
[1762669157745,0.0464388,158.19,158.17,3.11]
[1762669158443,0.0464388,158.19,158.17,8.8019]
[1762669158746,0.0464388,158.19,158.18,3.11]
[1762669167748,7.37778657,158.26,158.2,3.11]
[1762669167947,10.59778657,158.26,158.2,3.11]
[1762669168151,3.22,158.25,158.2,3.11]
[1762669168852,3.26603637,158.24,158.21,3.15293044]
[1762669169956,3.26603637,158.24,158.21,8.84343044]
[1762669172258,3.26603637,158.24,158.21,0.04293044]
[1762669172459,3.15,158.23,158.21,0.04293044]
[1762669172951,7.42442294,158.24,158.21,0.04293044]
[1762669172952,4.83878657,158.22,158.21,0.04293044]
[1762669174148,4.83878657,158.22,158.15,7.81660749]
[1762669174149,3.15,158.21,158.15,2.99]
[1762669174348,5.90394805,158.26,158.15,2.99]
[1762669174349,3.15,158.19,158.15,2.99]
[1762669175150,3.19264039,158.19,158.15,3.03187759]
[1762669176959,3.19264039,158.19,158.16,2.99]
[1762669178958,3.19264039,158.19,158.15,8.72447759]
[1762669180364,3.19264039,158.19,158.16,2.99]
[1762669182162,3.19264039,158.19,158.15,8.72447759]
[1762669182662,3.19264039,158.19,158.16,2.99]
[1762669184365,3.19264039,158.19,158.16,8.6823]
[1762669187866,3.19264039,158.19,158.17,5.6919]
[1762669188070,0.04264039,158.19,158.18,2.94]
[1762669188868,0.00077758,158.19,158.18,2.94]
[1762669190570,0.00077758,158.19,158.18,10.75660749]
[1762669197177,0.00077758,158.19,158.18,2.94]
[1762669198077,0.00077758,158.19,158.18,4.2]
[1762669198273,0.00077758,158.19,158.18,12.01660749]
[1762669199382,0.00077758,158.19,158.18,2.94]
[1762669199979,3.07,158.26,158.21,2.94]
[1762669200178,3.07,158.3,158.21,2.94]
[1762669200375,3.07,158.33,158.23,2.94]
[1762669200578,3.07,158.33,158.27,2.94]
[1762669201083,3.07,158.31,158.28,2.98577349]
[1762669201981,3.07,158.31,158.28,8.67377349]
[1762669203087,3.07,158.31,158.29,8.7376]
[1762669204088,3.07,158.31,158.28,0.04577349]
[1762669204484,3.07,158.31,158.28,3.09577349]
[1762669205383,3.07,158.31,158.28,0.04577349]
[1762669205785,8.7571,158.31,158.28,0.04577349]
[1762669206083,2.98,158.3,158.28,0.04577349]
[1762669206477,8.6674,158.3,158.23,5.6897]
[1762669206786,2.98,158.29,158.23,5.6897]
[1762669207784,2.98,158.27,158.24,0.04405668]
[1762669211089,2.98,158.27,158.22,8.7401]
[1762669211090,2.98,158.25,158.18,3.05]
[1762669212191,3.02337154,158.23,158.2,0.04807508]
[1762669212789,0.04337154,158.23,158.2,3.09807508]
[1762669214190,0.04337154,158.23,158.22,3.05]
[1762669218990,2.98,158.28,158.23,5.6896]
[1762669219194,2.98,158.28,158.18,3.05]
[1762669220000,2.98,158.28,158.21,8.7404]
[1762669220190,3.02258497,158.25,158.22,3.05]
[1762669221006,3.02258497,158.25,158.22,8.7401]
[1762669223591,3.02258497,158.25,158.21,0.0417345]
[1762669224295,3.02258497,158.25,158.22,3.05]
[1762669224494,0.04258497,158.25,158.22,3.05]
[1762669224803,0.04258497,158.25,158.23,5.6897]
[1762669224804,3.02258497,158.25,158.23,5.6897]
[1762669224997,3.02258497,158.25,158.23,8.7397]
[1762669230017,3.02258497,158.25,158.23,5.6897]
[1762669230314,3.02258497,158.25,158.21,8.7821345]
[1762669230914,3.02258497,158.25,158.22,8.7401]
[1762669231614,3.02258497,158.25,158.22,5.6901]
[1762669235111,3.02258497,158.25,158.21,0.0417345]
[1762669235815,3.02258497,158.25,158.21,3.1417345]
[1762669236916,3.02258497,158.25,158.21,0.0417345]
[1762669237118,3.02258497,158.25,158.21,5.7322345]
[1762669237614,3.02258497,158.25,158.21,8.8322345]
[1762669238320,3.02258497,158.25,158.21,5.7322345]
[1762669238918,3.02258497,158.25,158.21,8.8322345]
[1762669241819,7.75272477,158.24,158.21,0.0417345]
[1762669242124,3.17,158.23,158.21,0.0417345]
[1762669248923,3.13,158.22,158.21,0.0417345]
[1762669250328,7.71174675,158.22,158.21,0.0417345]
[1762669250626,3.13,158.22,158.21,0.0417345]
[1762669261135,3.13,158.24,158.22,3.17]
[1762669261335,3.13,158.24,158.21,5.7321345]
[1762669261639,3.13,158.24,158.21,8.8321345]
[1762669262640,0.04258497,158.25,158.23,3.1]
[1762669263138,2.98258497,158.25,158.23,3.1]
[1762669272541,4.67063281,158.25,158.21,0.0417345]
[1762669272838,7.52308942,158.24,158.21,0.0417345]
[1762669273040,2.94,158.23,158.21,0.0417345]
[1762669273241,4.62804784,158.23,158.21,0.0417345]
[1762669273433,2.94,158.22,158.21,0.0417345]
[1762669283749,2.94,158.24,158.21,3.1417345]
[1762669284453,2.94,158.23,158.21,0.0417345]
[1762669285950,2.94,158.24,158.22,3.1]
[1762669286148,2.94,158.24,158.21,5.7322345]
[1762669286353,2.94,158.24,158.22,3.1]
[1762669286557,4.67063281,158.25,158.23,3.1]
[1762669286853,2.94,158.24,158.22,8.7901]
[1762669287555,4.67063281,158.25,158.23,3.1]
[1762669289941,2.94,158.24,158.22,8.7901]
[1762669291160,2.94,158.24,158.21,3.1417345]
[1762669291550,2.94,158.24,158.21,0.0417345]
[1762669291850,6.25159152,158.23,158.21,0.0417345]
[1762669292057,3.2,158.22,158.21,0.0417345]
[1762669292754,3.2,158.24,158.22,3.13]
[1762669297057,3.2,158.24,158.21,5.7322345]
[1762669297258,3.2,158.24,158.21,0.0417345]
[1762669297459,3.2,158.22,158.21,0.0417345]
[1762669299462,3.2,158.21,158.17,8.8218]
[1762669299659,3.2,158.2,158.18,3.13]
[1762669300058,3.2,158.2,158.17,8.8218]
[1762669300558,3.24167645,158.2,158.17,8.86203303]
[1762669300949,3.24167645,158.2,158.18,5.6916]
[1762669301149,3.24167645,158.2,158.18,8.8216]
[1762669311273,0.04167645,158.2,158.19,3.0]
[1762669322173,3.15,158.25,158.21,2.91]
[1762669323172,3.19789341,158.25,158.21,2.95743375]
[1762669323972,3.19789341,158.25,158.23,2.91]
[1762669326783,0.04789341,158.25,158.24,2.91]
[1762669336592,3.19789341,158.25,158.21,8.64783375]
[1762669336894,3.19789341,158.25,158.21,2.95743375]
[1762669337786,3.19789341,158.25,158.22,2.91]
[1762669338986,3.19789341,158.25,158.22,8.6001]
[1762669339183,3.19789341,158.25,158.23,2.91]
[1762669339887,3.19789341,158.25,158.21,0.04743375]
[1762669340091,3.19789341,158.25,158.21,2.95743375]
[1762669340293,3.19789341,158.25,158.21,0.04743375]
[1762669340996,3.15,158.23,158.21,0.04743375]
[1762669341190,3.15,158.23,158.21,2.95743375]
[1762669342701,0.04789341,158.25,158.21,2.95743375]
[1762669342901,3.15,158.24,158.22,2.91]
[1762669343697,3.15,158.24,158.21,2.95743375]
[1762669344788,3.15,158.24,158.21,0.04743375]
[1762669346005,7.74470059,158.24,158.21,0.04743375]
[1762669346202,3.15,158.23,158.21,0.04743375]
[1762669347197,3.15,158.22,158.21,0.04743375]
[1762669347396,3.15,158.22,158.15,2.91]
[1762669347599,3.15,158.21,158.15,2.91]
[1762669348505,3.15,158.19,158.16,2.95187927]
[1762669348804,3.15,158.19,158.17,5.692]
[1762669352007,3.15,158.19,158.17,8.592]
[1762669352397,3.10740448,158.2,158.18,8.5914]
[1762669352596,3.10740448,158.2,158.18,5.6914]
[1762669353195,3.10740448,158.2,158.18,8.5914]
[1762669353399,0.04740448,158.2,158.19,2.9]
[1762669357204,3.10740448,158.2,158.18,5.6914]
[1762669357910,3.10740448,158.2,158.18,8.5914]
[1762669358508,0.04740448,158.2,158.18,8.5914]
[1762669359212,0.04740448,158.2,158.19,2.9]
[1762669366212,3.06,158.26,158.22,2.98]
[1762669367214,3.10830533,158.26,158.24,2.98]
[1762669373123,0.04830533,158.26,158.24,8.6694]
[1762669373321,0.04830533,158.26,158.25,2.98]
[1762669381222,0.04830533,158.26,158.24,5.6894]
[1762669381422,3.17,158.25,158.23,2.98]
[1762669381823,0.04830533,158.26,158.23,2.98]
[1762669382118,0.04830533,158.26,158.25,2.97]
[1762669382320,4.81551119,158.26,158.22,3.01155044]
[1762669382518,3.08,158.25,158.22,3.01155044]
[1762669383925,3.08,158.23,158.22,0.04155044]
[1762669385421,1.68720586,158.24,158.22,3.01155044]
[1762669385627,4.81551119,158.26,158.22,3.01155044]
[1762669385814,0.04830533,158.26,158.22,3.01155044]
[1762669386022,0.04830533,158.26,158.25,2.97]
[1762669393831,3.12830533,158.26,158.23,2.97]